bitfinex/quotes_BTCUSD_20241022
["timestamp","ask_amount","ask_price","bid_price","bid_amount"]
[1729606372359,0.37755472,67441.0,67440.0,0.001646]
[1729606372586,0.37755325,67441.0,67440.0,0.001646]
[1729606372820,0.86085861,67441.0,67440.0,0.001646]
[1729606373046,1.02449787,67441.0,67440.0,0.001646]
[1729606373270,1.02431941,67441.0,67440.0,0.001646]
[1729606373493,0.148297,67432.0,67431.0,0.22226009]
[1729606373737,0.22929454,67432.0,67431.0,0.22226009]
[1729606373979,0.1628067,67432.0,67429.0,0.00222447]
[1729606374205,0.04432518,67431.0,67429.0,0.00222447]
[1729606374489,0.01384755,67434.0,67429.0,0.00222447]
[1729606374708,0.14895915,67433.0,67429.0,0.00222447]
[1729606374952,0.01384755,67436.0,67429.0,0.00222447]
[1729606375173,0.04432518,67438.0,67429.0,0.00222447]
[1729606375174,0.01384755,67438.0,67429.0,0.06933323]
[1729606375394,0.04432518,67439.0,67434.0,0.148291]
[1729606375648,0.01384755,67442.0,67429.0,0.00222447]
[1729606375871,0.01385033,67441.0,67429.0,0.00422447]
[1729606376098,0.01385033,67443.0,67442.0,0.148275]
[1729606376321,0.000823,67444.0,67433.0,0.25661882]
[1729606376549,0.000823,67444.0,67430.0,0.14895915]
[1729606376550,0.000823,67444.0,67439.0,0.148281]
[1729606376824,0.000823,67444.0,67437.0,0.148284]
[1729606376825,0.01385033,67443.0,67437.0,0.148284]
[1729606377047,0.01385033,67443.0,67439.0,0.14828]
[1729606377281,0.000823,67444.0,67431.0,0.22226009]
[1729606377512,0.01385033,67443.0,67437.0,0.148285]
[1729606377728,0.01385033,67443.0,67433.0,0.296589]
[1729606377729,0.01385033,67442.0,67433.0,0.296589]
[1729606377951,0.01385033,67441.0,67436.0,0.148288]
[1729606378191,0.01385033,67440.0,67429.0,0.00222447]
[1729606378419,0.296568,67438.0,67429.0,0.00222447]
[1729606378658,0.148288,67436.0,67426.0,0.14831]
[1729606378879,0.16282471,67435.0,67424.0,0.22226009]
[1729606379123,0.148293,67434.0,67433.0,0.002]
[1729606379392,0.31111771,67434.0,67433.0,0.002]
[1729606379628,0.31111771,67434.0,67431.0,0.00222444]
[1729606379629,0.148297,67432.0,67431.0,0.00222444]
[1729606379846,0.31112171,67432.0,67431.0,0.00222444]
[1729606380081,0.3333066,67432.0,67431.0,0.00222444]
[1729606380558,0.3333066,67432.0,67429.0,0.001646]
[1729606380559,0.231601,67430.0,67429.0,0.001646]
[1729606380805,0.58725785,67430.0,67429.0,0.001646]
[1729606381023,5.17284785,67430.0,67429.0,0.001646]
[1729606381254,5.5322898,67430.0,67429.0,0.001646]
[1729606381483,0.165308,67427.0,67426.0,0.002]
[1729606381715,0.16331,67426.0,67425.0,0.001676]
[1729606382134,5.08755685,67426.0,67425.0,0.001676]
[1729606382141,4.13096685,67426.0,67425.0,0.001676]
[1729606382373,1.03996685,67426.0,67425.0,0.001676]
[1729606382604,1.02496685,67426.0,67425.0,0.001676]
[1729606382837,1.14575361,67426.0,67425.0,0.001676]
[1729606383065,1.03490085,67426.0,67425.0,0.001676]
[1729606383315,1.14068677,67426.0,67425.0,0.001676]
[1729606383547,1.02990085,67426.0,67425.0,0.001676]
[1729606383769,1.14068677,67426.0,67425.0,0.001676]
[1729606384246,1.02990085,67426.0,67425.0,0.001676]
[1729606384499,1.12548563,67426.0,67425.0,0.001676]
[1729606384732,1.14768677,67426.0,67425.0,0.001676]
[1729606385236,1.14768677,67426.0,67425.0,0.002676]
[1729606385237,1.04690085,67426.0,67425.0,0.002676]
[1729606385490,1.06074274,67426.0,67425.0,0.002676]
[1729606385750,1.05074274,67426.0,67425.0,0.001676]
[1729606385989,1.05074274,67426.0,67404.0,0.00222535]
[1729606385990,0.148348,67409.0,67404.0,0.00222535]
[1729606386237,0.148348,67409.0,67396.0,0.001676]
[1729606386238,0.62592234,67409.0,67396.0,0.001676]
[1729606386479,0.148363,67402.0,67396.0,0.001676]
[1729606386714,0.29732215,67402.0,67396.0,0.001676]
[1729606386955,0.148374,67397.0,67396.0,0.001676]
[1729606387177,0.3250406,67397.0,67396.0,0.001676]
[1729606387889,0.34716038,67397.0,67396.0,0.001676]
[1729606388377,0.3250406,67397.0,67396.0,0.001676]
[1729606388650,0.31114928,67397.0,67396.0,0.001676]
[1729606388912,1.19107159,67397.0,67396.0,0.001676]
[1729606389136,0.81407159,67397.0,67396.0,0.001676]
[1729606389363,0.82207159,67397.0,67396.0,0.002676]
[1729606389862,0.83207159,67397.0,67396.0,0.002676]
[1729606390319,0.83207159,67397.0,67382.0,0.001678]
[1729606390320,0.67662064,67393.0,67382.0,0.001678]
[1729606390549,0.85321205,67393.0,67382.0,0.001678]
[1729606390775,1.05475033,67393.0,67382.0,0.001678]
[1729606391002,5.71867811,67393.0,67382.0,0.001678]
[1729606391233,5.5335467,67393.0,67382.0,0.001678]
[1729606391470,5.47493609,67393.0,67382.0,0.001678]
[1729606391696,0.153405,67383.0,67382.0,0.001678]
[1729606391931,0.015,67376.0,67373.0,0.001676]
[1729606392163,0.31237915,67376.0,67373.0,0.001676]
[1729606392393,0.32616527,67376.0,67373.0,0.001676]
[1729606392621,0.32816527,67376.0,67373.0,0.001676]
[1729606392845,4.90375527,67376.0,67373.0,0.001676]
[1729606393076,4.94024502,67376.0,67373.0,0.001676]
[1729606393306,1.28616527,67376.0,67373.0,0.001676]
[1729606393559,0.01378612,67376.0,67373.0,0.001676]
[1729606393791,0.0924,67383.0,67373.0,0.001676]
[1729606393792,0.014,67383.0,67378.0,0.148415]
[1729606394040,0.22226009,67382.0,67380.0,0.14841]
[1729606394303,0.22226009,67382.0,67375.0,0.001678]
[1729606394524,0.296771,67392.0,67375.0,0.298523]
[1729606394525,0.296787,67389.0,67375.0,0.298523]
[1729606394749,0.014,67376.0,67375.0,0.002678]
[1729606394998,0.014,67376.0,67375.0,0.37336109]
[1729606395227,0.296771,67392.0,67375.0,0.001678]
[1729606395464,0.22226009,67382.0,67375.0,0.001678]
[1729606395695,0.14895915,67391.0,67375.0,0.003678]
[1729606395921,0.22226009,67388.0,67376.0,0.296841]
[1729606396170,0.14895915,67387.0,67376.0,0.296841]
[1729606396389,0.14895915,67387.0,67378.0,0.148415]
[1729606396637,0.148398,67386.0,67375.0,0.1521]
[1729606396872,0.14895915,67385.0,67375.0,0.003678]
[1729606397099,0.148406,67383.0,67375.0,0.003678]
[1729606397325,0.14895915,67382.0,67375.0,0.003678]
[1729606397612,0.37067009,67381.0,67375.0,0.001678]
[1729606397861,0.25661882,67387.0,67375.0,0.001678]
[1729606397862,0.14895915,67380.0,67375.0,0.001678]
[1729606398085,0.14895915,67380.0,67376.0,0.002]
[1729606398534,0.14895915,67380.0,67375.0,0.001678]
[1729606398763,0.14895915,67380.0,67375.0,0.003678]
[1729606399236,0.14895915,67380.0,67375.0,0.001678]
[1729606399468,0.31111953,67380.0,67375.0,0.001678]
[1729606399716,0.445243,67379.0,67375.0,0.001678]
[1729606399975,0.15095915,67380.0,67375.0,0.001678]
[1729606399976,0.14895915,67378.0,67375.0,0.001678]
[1729606400232,0.002,67380.0,67375.0,0.001678]
[1729606400233,0.14895915,67379.0,67375.0,0.001678]
[1729606401241,0.001,67380.0,67376.0,0.14842]
[1729606401480,0.001,67380.0,67379.0,0.148414]
[1729606401729,0.01375121,67400.0,67379.0,0.00296777]
[1729606401969,0.14895915,67399.0,67387.0,0.296793]
[1729606402206,0.14895915,67399.0,67390.0,0.296776]
[1729606402459,0.14895915,67399.0,67388.0,0.00296747]
[1729606402460,0.22226009,67397.0,67393.0,0.148382]
[1729606402704,0.37063509,67397.0,67386.0,0.00222593]
[1729606402966,0.296757,67395.0,67386.0,0.00222593]
[1729606403226,0.270381,67396.0,67386.0,0.00222593]
[1729606403227,0.25661882,67391.0,67386.0,0.00222593]
[1729606403480,0.45950033,67390.0,67386.0,0.00222593]
[1729606403727,0.005,67403.0,67386.0,0.00222593]
[1729606403728,0.01376218,67389.0,67386.0,0.00222593]
[1729606403984,0.22226009,67396.0,67386.0,0.00222593]
[1729606404285,0.01376617,67395.0,67390.0,0.148389]
[1729606404488,0.01376617,67395.0,67386.0,0.00222593]
[1729606404736,0.14895915,67396.0,67373.0,0.303528]
[1729606404737,0.14895915,67396.0,67382.0,0.22226009]
[1729606404970,0.14895915,67396.0,67383.0,0.00296769]
[1729606405263,0.148357,67405.0,67395.0,0.148377]
[1729606405508,0.01376865,67406.0,67386.0,0.25661882]
[1729606405509,0.22226009,67398.0,67393.0,0.296762]
[1729606405758,0.14895915,67404.0,67397.0,0.148373]
[1729606405984,0.01377591,67406.0,67397.0,0.00296745]
[1729606406219,0.01377454,67418.0,67409.0,0.296693]
[1729606406465,0.20831615,67422.0,67395.0,0.25661882]
[1729606406466,0.22226009,67410.0,67395.0,0.25661882]
[1729606406701,0.14895915,67417.0,67400.0,0.22226009]
[1729606406702,0.296671,67415.0,67400.0,0.22226009]
[1729606406927,0.22226009,67412.0,67405.0,0.148356]
[1729606407161,0.01378362,67411.0,67410.0,0.148345]
[1729606407421,0.22226009,67411.0,67407.0,0.00222525]
[1729606407675,0.25661882,67421.0,67404.0,0.148357]
[1729606407903,0.25661882,67421.0,67397.0,0.296748]
[1729606407904,0.148337,67414.0,67397.0,0.296748]
[1729606408168,0.29729615,67414.0,67404.0,0.148358]
[1729606408438,0.01379396,67413.0,67412.0,0.148341]
[1729606408662,0.01379396,67413.0,67403.0,0.296722]
[1729606408663,0.22226009,67413.0,67403.0,0.296722]
[1729606408959,0.01379396,67412.0,67408.0,0.14835]
[1729606409191,0.148327,67419.0,67407.0,0.002]
[1729606409415,0.16275311,67418.0,67410.0,0.148345]
[1729606409647,0.01379396,67417.0,67408.0,0.296698]
[1729606409891,0.01379396,67416.0,67412.0,0.001]
[1729606410128,0.01379396,67415.0,67412.0,0.001]
[1729606410358,0.296653,67419.0,67412.0,0.001]
[1729606410359,0.148339,67413.0,67412.0,0.001]
[1729606410586,0.16213296,67413.0,67412.0,0.001]
[1729606411083,0.31109211,67413.0,67412.0,0.001]
[1729606411323,0.15975311,67413.0,67412.0,0.001]
[1729606411573,0.15975311,67413.0,67406.0,0.00222527]
[1729606411574,0.29730015,67413.0,67406.0,0.00222527]
[1729606411833,0.296683,67412.0,67410.0,0.002]
[1729606412057,0.148343,67411.0,67410.0,0.002]
[1729606412274,4.72454915,67411.0,67389.0,0.29678]
[1729606412531,0.14895915,67410.0,67391.0,0.296771]
[1729606412799,0.14895915,67410.0,67388.0,0.25661882]
[1729606413017,0.148358,67405.0,67395.0,0.148378]
[1729606413269,0.296696,67409.0,67396.0,0.148376]
[1729606413270,0.296705,67407.0,67396.0,0.148376]
[1729606413494,0.148358,67405.0,67393.0,0.51902209]
[1729606413746,0.14895915,67410.0,67393.0,0.22226009]
[1729606413967,0.14895915,67410.0,67396.0,0.296753]
[1729606414204,0.14895915,67410.0,67397.0,0.296749]
[1729606414433,0.14895915,67410.0,67402.0,0.296724]
[1729606414657,0.14895915,67410.0,67403.0,0.14836]
[1729606414890,0.14895915,67410.0,67401.0,0.148364]
[1729606415119,0.14895915,67410.0,67406.0,0.0022251]
[1729606415385,0.14895915,67410.0,67399.0,0.296739]
[1729606415386,0.01,67424.0,67399.0,0.296739]
[1729606415609,0.22226009,67412.0,67396.0,0.296749]
[1729606415863,0.14895915,67411.0,67402.0,0.002]
[1729606416359,0.14895915,67411.0,67397.0,0.22226009]
[1729606416598,0.148353,67407.0,67398.0,0.148372]
[1729606416819,0.148353,67407.0,67397.0,0.22226009]
[1729606416820,0.14895915,67407.0,67397.0,0.22226009]
[1729606417051,0.14895915,67407.0,67392.0,0.29899575]
[1729606417280,0.2967,67408.0,67392.0,0.00222575]
[1729606417281,0.148368,67400.0,67392.0,0.00222575]
[1729606417503,0.296713,67405.0,67392.0,0.15061075]
[1729606417724,0.22226009,67400.0,67399.0,0.002]
[1729606417942,0.148367,67400.0,67399.0,0.002]
[1729606418190,0.37121924,67404.0,67393.0,0.001652]
[1729606418443,0.148373,67398.0,67393.0,0.001652]
[1729606418673,0.14895915,67397.0,67393.0,0.001652]
[1729606418912,0.148381,67394.0,67393.0,0.001652]
[1729606419163,0.29734015,67394.0,67393.0,0.001652]
[1729606419397,0.29734015,67394.0,67393.0,0.003652]
[1729606421216,0.14895915,67394.0,67393.0,0.001652]
[1729606421446,0.29734015,67394.0,67393.0,0.003652]
[1729606421708,0.14895915,67394.0,67393.0,0.003652]
[1729606421927,0.14895915,67394.0,67393.0,0.001652]
[1729606422383,0.15695915,67394.0,67393.0,0.002652]
[1729606422607,0.008,67394.0,67393.0,0.151035]
[1729606423062,0.148377,67396.0,67393.0,0.001652]
[1729606423290,0.25661882,67408.0,67393.0,0.001652]
[1729606423291,0.296738,67400.0,67393.0,0.001652]
[1729606423570,0.148376,67396.0,67393.0,0.001652]
[1729606423764,0.14895915,67399.0,67393.0,0.001652]
[1729606423992,0.148374,67397.0,67393.0,0.001652]
[1729606424253,0.148381,67394.0,67393.0,0.001652]
[1729606424485,0.30234015,67394.0,67393.0,0.001652]
[1729606424947,0.29734015,67394.0,67393.0,0.001652]
[1729606426276,0.30234015,67394.0,67393.0,0.001652]
[1729606426971,0.005,67394.0,67393.0,0.001652]
[1729606427199,0.005,67394.0,67393.0,0.40665382]
[1729606427451,0.000826,67413.0,67393.0,0.3582913]
[1729606427673,0.22226009,67400.0,67393.0,0.3582913]
[1729606427912,0.14895915,67412.0,67393.0,0.3582913]
[1729606427913,0.14895915,67412.0,67393.0,0.25927082]
[1729606428176,0.22226009,67407.0,67396.0,0.296753]
[1729606428410,0.148355,67406.0,67399.0,0.148369]
[1729606428638,0.37061309,67407.0,67402.0,0.00222523]
[1729606428866,0.22226009,67407.0,67402.0,0.00222523]
[1729606429101,0.14895915,67412.0,67402.0,0.00222523]
[1729606429561,0.000826,67413.0,67402.0,0.08030574]
[1729606429795,0.000826,67413.0,67403.0,0.299689]
[1729606430045,0.000826,67413.0,67411.0,0.148343]
[1729606430278,0.000826,67413.0,67409.0,0.296693]
[1729606430505,0.000826,67413.0,67412.0,0.148341]
[1729606431919,0.296683,67412.0,67394.0,0.55337882]
[1729606432156,0.14895915,67412.0,67402.0,0.00222523]
[1729606432394,0.14895915,67412.0,67397.0,0.22226009]
[1729606432395,0.14895915,67411.0,67397.0,0.22226009]
[1729606432852,0.14895915,67411.0,67398.0,0.296744]
[1729606433077,0.296691,67410.0,67400.0,0.296735]
[1729606433313,0.14835,67408.0,67401.0,0.148364]
[1729606433544,0.148355,67406.0,67393.0,0.001652]
[1729606433784,0.148357,67405.0,67398.0,0.148372]
[1729606434028,0.148357,67405.0,67393.0,0.001652]
[1729606434029,0.148365,67402.0,67401.0,0.00222545]
[1729606434266,0.29732415,67402.0,67401.0,0.00222545]
[1729606434792,0.14895915,67402.0,67401.0,0.00222545]
[1729606435723,0.29732215,67402.0,67401.0,0.00322545]
[1729606436176,0.14895915,67402.0,67401.0,0.00322545]
[1729606436881,0.14895915,67402.0,67401.0,0.00222545]
[1729606437341,0.14895915,67402.0,67401.0,0.148365]
[1729606437342,0.002,67402.0,67401.0,0.148365]
[1729606437563,0.002,67402.0,67401.0,0.16616855]
[1729606437785,0.148333,67416.0,67409.0,0.148347]
[1729606438003,0.22226009,67410.0,67406.0,0.148353]
[1729606438229,0.14895915,67412.0,67406.0,0.296709]
[1729606438454,0.14895915,67412.0,67411.0,0.148343]
[1729606438680,0.12203715,67421.0,67412.0,0.148341]
[1729606438898,0.148327,67419.0,67412.0,0.148341]
[1729606439154,0.148335,67415.0,67408.0,0.148348]
[1729606439377,0.0778,67421.0,67412.0,0.148341]
[1729606439378,0.148326,67419.0,67412.0,0.148341]
[1729606439606,0.148328,67418.0,67412.0,0.148341]
[1729606440067,0.04423715,67420.0,67401.0,0.0505359]
[1729606440290,0.04423715,67420.0,67403.0,0.296721]
[1729606440523,0.04423715,67420.0,67411.0,0.002]
[1729606440524,0.51956024,67412.0,67411.0,0.002]
[1729606440968,0.51956024,67412.0,67393.0,0.001652]
[1729606440969,0.44503,67411.0,67394.0,0.296758]
[1729606441211,0.44503,67411.0,67402.0,0.22226009]
[1729606441212,0.148361,67403.0,67402.0,0.22226009]
[1729606441433,0.14895915,67403.0,67402.0,0.0022253]
[1729606442832,0.04429845,67408.0,67402.0,0.0022253]
[1729606443057,0.14895915,67408.0,67405.0,0.148356]
[1729606443293,0.14895915,67408.0,67403.0,0.148361]
[1729606443543,0.14895915,67408.0,67403.0,0.296719]
[1729606444012,0.14895915,67408.0,67402.0,0.0022253]
[1729606444013,0.004,67412.0,67407.0,0.14835]
[1729606444241,0.22226009,67411.0,67404.0,0.296717]
[1729606444467,0.14895915,67412.0,67408.0,0.148349]
[1729606444695,0.14895915,67412.0,67402.0,0.1505883]
[1729606444696,0.148347,67410.0,67402.0,0.1505883]
[1729606444915,0.14895915,67412.0,67402.0,0.1505883]
[1729606444916,0.14895915,67412.0,67402.0,0.1505873]
[1729606445138,0.14895915,67412.0,67402.0,0.0022253]
[1729606445361,0.1932576,67412.0,67407.0,0.002]
[1729606445584,0.3415996,67412.0,67407.0,0.002]
[1729606445820,0.29730115,67412.0,67407.0,0.002]
[1729606446060,0.14895915,67412.0,67407.0,0.002]
[1729606446512,0.04429845,67410.0,67407.0,0.002]
[1729606446728,0.14895915,67410.0,67407.0,0.002]
[1729606446975,0.04429845,67409.0,67407.0,0.002]
[1729606447487,0.04429845,67408.0,67402.0,0.0022253]
[1729606447699,0.04429845,67409.0,67402.0,0.0042253]
[1729606447911,0.05816015,67408.0,67402.0,0.1525873]
[1729606448133,0.0138617,67407.0,67402.0,0.0022253]
[1729606448357,0.0138617,67406.0,67402.0,0.0022253]
[1729606448580,0.0138617,67405.0,67402.0,0.0022253]
[1729606448804,0.0138617,67404.0,67403.0,0.148361]
[1729606449032,0.0138617,67411.0,67403.0,0.70229997]
[1729606449255,0.000886,67413.0,67403.0,0.70229997]
[1729606449256,0.000886,67413.0,67412.0,0.148341]
[1729606449507,0.000886,67413.0,67412.0,0.15830735]
[1729606449733,0.000886,67413.0,67412.0,0.57388532]
[1729606449983,0.000886,67413.0,67412.0,0.56891897]
[1729606451160,0.000886,67413.0,67412.0,0.57091897]
[1729606451384,0.000886,67413.0,67412.0,0.68734907]
[1729606451991,0.000886,67413.0,67412.0,0.57091897]
[1729606452220,0.000886,67413.0,67412.0,0.160341]
[1729606452418,0.000886,67413.0,67412.0,0.150341]
[1729606452618,0.000886,67413.0,67412.0,0.148341]
[1729606452821,0.000886,67413.0,67412.0,0.40792607]
[1729606453021,0.000886,67413.0,67412.0,0.52881664]
[1729606453194,0.000886,67413.0,67412.0,0.69277579]
[1729606454027,0.000886,67413.0,67412.0,0.69477579]
[1729606454550,0.000886,67413.0,67412.0,0.69277579]
[1729606455017,0.000886,67413.0,67412.0,0.69477579]
[1729606455240,0.000886,67413.0,67412.0,0.69677579]
[1729606455712,0.000886,67413.0,67412.0,0.69477579]
[1729606458121,0.000886,67413.0,67412.0,1.05139461]
[1729606458355,0.000824,67429.0,67412.0,1.05139461]
[1729606458356,0.000824,67429.0,67428.0,0.51992482]
[1729606458591,0.000824,67429.0,67428.0,0.78809015]
[1729606460222,0.000824,67429.0,67428.0,0.78309015]
[1729606460479,0.000824,67429.0,67428.0,0.629131]
[1729606460709,0.000824,67429.0,67428.0,0.26751218]
[1729606460958,0.000824,67429.0,67428.0,0.148306]
[1729606461689,0.000824,67429.0,67428.0,0.150306]
[1729606462192,0.000824,67429.0,67419.0,0.296648]
[1729606462451,0.000824,67429.0,67422.0,0.296639]
[1729606462685,0.000824,67429.0,67428.0,0.002]
[1729606463164,0.149128,67429.0,67428.0,0.002]
[1729606463664,0.000824,67429.0,67428.0,0.002]
[1729606463920,0.149128,67429.0,67428.0,0.1]
[1729606464174,0.29808715,67429.0,67428.0,0.1]
[1729606464434,4.87367715,67429.0,67428.0,0.1]
[1729606465159,4.87367715,67429.0,67405.0,0.296711]
[1729606465160,0.005,67426.0,67406.0,0.22226009]
[1729606465403,0.148326,67419.0,67418.0,0.22226009]
[1729606465653,0.148336,67415.0,67412.0,0.001652]
[1729606465891,0.148337,67414.0,67412.0,0.001652]
[1729606466128,0.25661882,67424.0,67412.0,0.001652]
[1729606466129,0.148335,67415.0,67412.0,0.001652]
[1729606466659,0.148339,67413.0,67412.0,0.001652]
[1729606466888,0.296669,67416.0,67412.0,0.001652]
[1729606467128,0.25661882,67424.0,67412.0,0.001652]
[1729606467362,0.148339,67413.0,67412.0,0.001652]
[1729606467593,0.29729815,67413.0,67412.0,0.001652]
[1729606468829,4.88670912,67413.0,67412.0,0.001652]
[1729606469071,3.95111912,67413.0,67412.0,0.001652]
[1729606470054,0.83495915,67413.0,67412.0,0.001652]
[1729606470282,0.3271,67413.0,67412.0,0.001652]
[1729606471249,0.62439815,67413.0,67412.0,0.001652]
[1729606471492,0.62539815,67413.0,67412.0,0.001652]
[1729606471960,0.80739815,67413.0,67412.0,0.001652]
[1729606472184,5.39481096,67413.0,67412.0,0.001652]
[1729606472409,5.41693045,67413.0,67412.0,0.001652]
[1729606472632,5.41593045,67413.0,67412.0,0.001652]
[1729606474076,2.37634045,67413.0,67412.0,0.003652]
[1729606474527,2.37634045,67413.0,67412.0,0.001652]
[1729606474752,2.37734045,67413.0,67412.0,0.001652]
[1729606475206,2.37633566,67413.0,67412.0,0.001652]
[1729606475442,2.05433566,67413.0,67412.0,0.001652]
[1729606475715,0.68288196,67413.0,67412.0,0.002652]
[1729606475950,0.50287845,67413.0,67412.0,0.002652]
[1729606476183,0.48905915,67413.0,67412.0,0.002652]
[1729606476654,0.3401,67413.0,67412.0,0.150993]
[1729606476889,0.327926,67413.0,67412.0,0.149993]
[1729606477348,0.331926,67413.0,67412.0,0.001652]
[1729606477806,0.327926,67413.0,67412.0,0.149993]
[1729606478058,0.327926,67413.0,67412.0,0.001652]
[1729606478277,0.327926,67413.0,67412.0,0.003652]
[1729606478725,0.327926,67413.0,67412.0,0.001652]
[1729606478942,0.327926,67413.0,67412.0,0.002652]
[1729606479409,0.476265,67413.0,67412.0,0.002652]
[1729606480334,0.62522415,67413.0,67412.0,0.002652]
[1729606481360,0.62522415,67413.0,67412.0,0.001652]
[1729606481616,0.47688515,67413.0,67412.0,0.001652]
[1729606481931,0.332926,67413.0,67412.0,0.149993]
[1729606482121,0.327926,67413.0,67412.0,0.149993]
[1729606482867,0.327926,67413.0,67412.0,0.40661182]
[1729606483117,0.327926,67413.0,67412.0,0.49011182]
[1729606483370,0.327926,67413.0,67412.0,0.48811182]
[1729606483836,0.327926,67413.0,67412.0,0.48311182]
[1729606484062,0.329926,67413.0,67412.0,0.48311182]
[1729606484543,0.327926,67413.0,67412.0,0.48311182]
[1729606485009,0.327926,67413.0,67412.0,0.48511182]
[1729606485251,0.327926,67413.0,67412.0,0.40861182]
[1729606485471,0.327926,67413.0,67412.0,0.40661182]
[1729606485741,0.327926,67413.0,67412.0,0.40861182]
[1729606485975,0.327926,67413.0,67412.0,0.151993]
[1729606487145,0.327926,67413.0,67412.0,0.40661182]
[1729606487369,0.327926,67413.0,67412.0,0.40861182]
[1729606487841,0.327926,67413.0,67412.0,0.40661182]
[1729606488363,0.327926,67413.0,67412.0,0.40861182]
[1729606489093,0.327926,67413.0,67412.0,0.41083659]
[1729606489354,0.327926,67413.0,67412.0,0.53912845]
[1729606489598,0.327926,67413.0,67412.0,0.54412845]
[1729606489817,0.327926,67413.0,67412.0,0.54612845]
[1729606490036,0.327926,67413.0,67412.0,0.54512845]
[1729606490274,0.327926,67413.0,67412.0,0.54612845]
[1729606490499,0.327926,67413.0,67412.0,0.54412845]
[1729606490739,0.327926,67413.0,67412.0,0.41583659]
[1729606490963,0.327926,67413.0,67412.0,0.41783659]
[1729606491189,0.327926,67413.0,67412.0,0.41583659]
[1729606491410,0.327926,67413.0,67412.0,0.41783659]
[1729606491860,0.327926,67413.0,67412.0,0.50505263]
[1729606492160,0.327926,67413.0,67412.0,0.76401178]
[1729606492399,0.327926,67413.0,67412.0,1.31235493]
[1729606492615,0.000826,67428.0,67427.0,0.40692682]
[1729606492892,0.000826,67428.0,67427.0,0.5371079]
[1729606493142,0.000826,67428.0,67427.0,0.77106705]
[1729606493376,1e-06,67428.0,67427.0,0.90406705]
[1729606493633,0.000823,67441.0,67440.0,0.155279]
[1729606493875,0.000823,67441.0,67440.0,0.56085697]
[1729606494135,0.000823,67441.0,67440.0,0.70691447]
[1729606495103,0.000823,67441.0,67440.0,0.89211447]
[1729606495325,0.000823,67441.0,67440.0,0.91511447]
[1729606495554,0.000823,67441.0,67440.0,0.91611447]
[1729606496276,0.000823,67441.0,67440.0,0.91411447]
[1729606496746,0.000823,67441.0,67440.0,0.91611447]
[1729606496973,0.000823,67441.0,67440.0,0.91311447]
[1729606497263,0.000823,67441.0,67440.0,0.91611447]
[1729606497510,0.000823,67441.0,67440.0,0.89311447]
[1729606497754,0.000823,67441.0,67440.0,0.89011447]
[1729606497982,0.000823,67441.0,67440.0,0.89311447]
[1729606498451,0.000823,67441.0,67440.0,0.88611447]
[1729606498715,0.000823,67441.0,67440.0,0.89111447]
[1729606498963,0.000823,67441.0,67440.0,0.2993365]
[1729606499198,0.000823,67441.0,67440.0,0.3093365]
[1729606499444,0.000823,67441.0,67440.0,0.1510575]
[1729606499690,0.000823,67441.0,67440.0,0.153279]
[1729606499984,0.000823,67441.0,67423.0,0.005]
[1729606500272,0.000823,67441.0,67436.0,0.00222415]
[1729606500273,0.70213697,67440.0,67436.0,0.00222415]
[1729606500583,1.96721924,67440.0,67420.0,0.22226009]
[1729606500778,0.39395915,67440.0,67435.0,0.22226009]
[1729606501031,0.148282,67439.0,67428.0,0.22226009]
[1729606501261,0.079223,67441.0,67436.0,0.22226009]
[1729606501496,0.079223,67441.0,67429.0,0.22226009]
[1729606501722,0.079223,67441.0,67430.0,0.03727947]
[1729606501951,0.079223,67441.0,67426.0,0.00222462]
[1729606501952,0.25661882,67439.0,67426.0,0.00222462]
[1729606502195,0.25661882,67435.0,67427.0,0.22226009]
[1729606502440,0.14895915,67438.0,67427.0,0.22226009]
[1729606502441,0.25661882,67430.0,67427.0,0.22226009]
[1729606502669,0.14895915,67429.0,67427.0,0.22226009]
[1729606502908,0.149281,67440.0,67429.0,0.00222427]
[1729606503137,0.51950324,67439.0,67429.0,0.00222427]
[1729606503371,0.14895915,67439.0,67429.0,0.00222427]
[1729606503649,0.375778,67441.0,67438.0,0.22226009]
[1729606503650,0.000823,67441.0,67438.0,0.22226009]
[1729606503879,0.000823,67441.0,67440.0,0.148279]
[1729606504111,0.000823,67441.0,67440.0,0.15124409]
[1729606504330,0.000823,67441.0,67440.0,0.148279]
[1729606504819,0.000823,67441.0,67440.0,0.156244]
[1729606505266,0.000823,67441.0,67440.0,0.151244]
[1729606505497,0.000823,67441.0,67440.0,0.26083357]
[1729606505949,0.000823,67441.0,67440.0,0.25883357]
[1729606506182,0.000823,67441.0,67440.0,0.25586857]
[1729606506647,0.000823,67441.0,67440.0,0.25486857]
[1729606506876,0.000823,67441.0,67440.0,0.001]
[1729606507343,0.000823,67441.0,67440.0,0.00396511]
[1729606507571,0.000823,67441.0,67440.0,0.00296511]
[1729606507804,0.000823,67441.0,67440.0,0.149279]
[1729606508028,0.000823,67441.0,67440.0,0.15424389]
[1729606508419,0.000823,67441.0,67440.0,0.51910331]
[1729606508422,0.000823,67441.0,67440.0,0.79872213]
[1729606508618,0.000823,67444.0,67443.0,0.536273]
[1729606508860,0.00084,67450.0,67449.0,0.54487882]
[1729606509052,0.00084,67450.0,67449.0,0.69383797]
[1729606509258,0.00084,67450.0,67449.0,0.84279712]
[1729606509475,0.000823,67464.0,67449.0,0.84279712]
[1729606509476,0.000823,67464.0,67463.0,0.54484782]
[1729606509678,0.000823,67464.0,67463.0,0.69180697]
[1729606509818,0.000823,67464.0,67457.0,0.002]
[1729606509819,0.000823,67464.0,67457.0,0.005]
[1729606510032,0.000823,67464.0,67453.0,0.22226009]
[1729606510251,0.000823,67464.0,67459.0,0.00222317]
[1729606510468,0.14978215,67464.0,67459.0,0.00222317]
[1729606510675,0.44541715,67463.0,67459.0,0.00222317]
[1729606510910,0.25661882,67460.0,67450.0,0.22226009]
[1729606511125,0.01377843,67459.0,67458.0,0.22226009]
[1729606511358,0.000823,67464.0,67461.0,0.00222334]
[1729606511785,0.001823,67464.0,67461.0,0.00222334]
[1729606512230,0.000823,67464.0,67459.0,0.00296444]
[1729606512483,0.000823,67464.0,67455.0,0.296489]
[1729606512484,0.000823,67464.0,67461.0,0.001]
[1729606513125,0.000823,67464.0,67463.0,0.148229]